Workbook

Sheet Wybór języka

Sheet PL
A1: P&L (Asseco Poland S.A.) | B1: P&L (Asseco Poland S.A.) | C1: Q3 2018 | D1: Q2 2018 | E1: Q1 2018 | F1: Q4 2017 | G1: Q3 2017 | H1: Q2 2017 | I1: Q1 2017
C3: mln PLN | D3: mln PLN | E3: mln PLN | F3: mln PLN | G3: mln PLN | H3: mln PLN | I3: mln PLN
A5: Przychody ze sprzedaży | B5: Sales revenues | C5: 211 | D5: 225.4 | E5: 205.4 | F5: 259.1 | G5: 202.9 | H5: 196.3 | I5: 202.9
A6: Koszt własny sprzedaży | B6: Cost of sales | C6: -133.3 | D6: -147.5 | E6: -137 | F6: -179.6 | G6: -139 | H6: -142.4 | I6: -142.6
A7: Odpis (odwrócenie odpisu) z tytułu utraty wartości należności handlowych | B7: Write-off (reversal of write-off) of trade receivables | C7: -1.1 | D7: -2.4 | E7: 6.7 | F7: 0 | G7: 0 | H7: 0 | I7: 0
A9: Zysk brutto ze sprzedaży | B9: Gross profit on sales | C9: =SUM(C5:C7) -> 76.6 | D9: =SUM(D5:D7) -> 75.5 | E9: =SUM(E5:E7) -> 75.1 | F9: =SUM(F5:F6) -> 79.5 | G9: =SUM(G5:G6) -> 63.9 | H9: =SUM(H5:H6) -> 53.9 | I9: =SUM(I5:I6) -> 60.3
A11: Koszty sprzedaży | B11: Selling costs | C11: -10.7 | D11: -11.4 | E11: -10.8 | F11: -18.2 | G11: -11.1 | H11: -11.3 | I11: -10.2
A12: Koszty ogólnego zarządu | B12: General administrative expenses | C12: -18.9 | D12: -21 | E12: -18.5 | F12: -25 | G12: -21.9 | H12: -21.2 | I12: -19.1
A14: Zysk netto ze sprzedaży | B14: Net profit on sales | C14: =SUM(C9,C11:C12) -> 47 | D14: 43.1 | E14: 45.8 | F14: 36.3 | G14: =SUM(G9,G11:G12) -> 30.9 | H14: 21.4 | I14: 31
A16: Pozostałe przychody operacyjne | B16: Other operating income | C16: 0.8 | D16: 0.8 | E16: 0.8 | F16: 1.6 | G16: 1.8 | H16: 1 | I16: 1.1
A17: Pozostałe koszty operacyjne | B17: Other operating expenses | C17: -0.2 | D17: -0.8 | E17: -0.2 | F17: -3.3 | G17: -0.3 | H17: -0.3 | I17: -0.6
A18: Odpis (odwrócenie odpisu) z tytułu utraty wartości instrumentów finansowych | B18: Write-off (reversal of write-off) of financial instruments | C18: 0 | D18: 0 | E18: 0 | F18: 0 | G18: 0 | H18: 0 | I18: 0
A20: Zysk z działalności operacyjnej | B20: Operating profit | C20: =SUM(C14,C16:C18) -> 47.6 | D20: =SUM(D14,D16:D18) -> 43.1 | E20: =SUM(E14,E16:E18) -> 46.4 | F20: =SUM(F14,F16:F17) -> 34.6 | G20: 32.4 | H20: 22.1 | I20: 31.5
A22: Działalność finansowa | B22: Financial activity | C22: 3.3 | D22: 7.3 | E22: 12 | F22: -85.2 | G22: 45 | H22: 9.2 | I22: 115.2
A24: Zysk brutto | B24: Pre-tax profit | C24: =SUM(C20,C22) -> 50.9 | D24: 50.4 | E24: 58.4 | F24: -50.6 | G24: 77.4 | H24: 31.3 | I24: 146.7
A26: Podatek dochodowy | B26: Corporate income tax | C26: -10.7 | D26: -10.3 | E26: -13.1 | F26: 7.9 | G26: -32.2 | H26: -4.2 | I26: -0.7
A28: Zysk netto z działalności kontynuawanej za okres sprawozdawczy | B28: Net profit for the reporting period from continued operations | C28: =SUM(C24,C26) -> 40.2 | D28: 40.1 | E28: 45.3 | F28: -42.7 | G28: 45.2 | H28: 27.1 | I28: 146
A30: Zysk netto z działalności zaniechanej za okres sprawozdawczy | B30: Net profit for the reporting period from discontinued operations | C30: 0 | D30: 0 | E30: 0 | F30: 0 | G30: 0 | H30: 0 | I30: 0
A32: Zysk netto za okres sprawozdawczy | B32: Net profit for the reporting period | C32: =SUM(C28,C30) -> 40.2 | D32: 40.1 | E32: 45.3 | F32: -42.7 | G32: 45.2 | H32: 27.1 | I32: 146
A34: Zysk netto przypadający na jedną akcję (w złotych) z działalności kontynuowanej | B34: Earnings per share (in PLN) from continued operations:
A35: EPS | B35: EPS | C35: 0.48 | D35: 0.48 | E35: 0.55 | F35: -0.51 | G35: 0.54 | H35: 0.33 | I35: 1.76
A36: EPS rozwodniony | B36: Diluted EPS | C36: 0.48 | D36: 0.48 | E36: 0.55 | F36: -0.51 | G36: 0.54 | H36: 0.33 | I36: 1.76

Sheet BS
A1: BILANS ASSECO POLAND S.A. | B1: STATEMENT OF FINANCIAL POSITION OF ASSECO POLAND S.A. | C1: Q3 2018 | D1: Q2 2018 | E1: Q1 2018 | F1: Q4 2017 | G1: Q3 2017 | H1: Q2 2017 | I1: Q1 2017
C3: mln PLN | D3: mln PLN | E3: mln PLN | F3: mln PLN | G3: mln PLN | H3: mln PLN | I3: mln PLN
A7: Aktywa trwałe | B7: Non-current assets
A8: Rzeczowe aktywa trwałe | B8: Property, plant and equipment | C8: 312.2 | D8: 314.9 | E8: 316.7 | F8: 322.1 | G8: 322.4 | H8: 325.3 | I8: 329.9
A9: Wartości niematerialne | B9: Intangible assets | C9: 2208.5 | D9: 2210.5 | E9: 2213.4 | F9: 2217.1 | G9: 2300.2 | H9: 2304.3 | I9: 2308
A10: w tym wartość firmy z połączenia | B10: of which goodwill from mergers | C10: 1932.5 | D10: 1932.5 | E10: 1932.5 | F10: 1932.5 | G10: 2012.6 | H10: 2012.6 | I10: 2012.6
A11: Nieruchomości inwestycyjne | B11: Investment property | C11: 0.4 | D11: 0.4 | E11: 0.4 | F11: 0.4 | G11: 0.4 | H11: 0.4 | I11: 0.4
A12: Inw. w jedn. zależnych i stowarzyszonych | B12: Inv. in subsidiaries and associates | C12: 2056.1 | D12: 2055 | E12: 2052.5 | F12: 2046.2 | G12: 2045.6 | H12: 2298.4 | I12: 2321
A13: Należności długoterminowe | B13: Long-term receivables | C13: 81.2 | D13: 85.5 | E13: 88.3 | F13: 87.9 | G13: 90.8 | H13: 95.8 | I13: 75.6
A14: Długoterminowe aktywa finansowe | B14: Long-term financial assets | C14: 14 | D14: 13.5 | E14: 37.1 | F14: 37.2 | G14: 33.4 | H14: 62.5 | I14: 64
A15: Długoterm. rozl. międzyokresowe | B15: Long-term prepayments and accr. inc. | C15: 5.9 | D15: 4.3 | E15: 1 | F15: 1.8 | G15: 2.5 | H15: 1.3 | I15: 1.5
C16: =SUM(C8:C9,C11:C15) -> 4678.3 | D16: =SUM(D8:D9,D11:D15) -> 4684.1 | E16: =SUM(E8:E9,E11:E15) -> 4709.4 | F16: =SUM(F8:F9,F11:F15) -> 4712.7 | G16: =SUM(G8:G9,G11:G15) -> 4795.3 | H16: =SUM(H8:H9,H11:H15) -> 5088 | I16: 5100.4
A17: Aktywa obrotowe | B17: Current assets
A18: Zapasy | B18: Inventories | C18: 4.7 | D18: 4.7 | E18: 2.8 | F18: 2.7 | G18: 3.8 | H18: 6 | I18: 7.5
A19: Należności z tytułu dostaw i usług | B19: Trade receivables | C19: 160.4 | D19: 187.3 | E19: 373.6 | F19: 393.8 | G19: 379.3 | H19: 355.1 | I19: 349.8
A20: Aktywa z tytułu umów z klientami | B20: Contract assets | C20: 151.7 | D20: 164.9 | E20: 0 | F20: 0 | G20: 0 | H20: 0 | I20: 0
A21: Należności z tyt. podatku dochodowego od osób prawnych | B21: Corporate income tax receivable | C21: 0.1 | D21: 0.1 | E21: 28.3 | F21: 29.1 | G21: 0.2 | H21: 15.3 | I21: 14.3
A22: Pozostałe należności | B22: Other receivables | C22: 27.3 | D22: 24.2 | E22: 25.3 | F22: 27.1 | G22: 31.2 | H22: 45.1 | I22: 165.7
A23: Pozostałe aktywa niefinansowe | B23: Other non-financial assets | C23: 3.8 | D23: 1.6 | E23: 1.8 | F23: 0.9 | G23: 1.4 | H23: 1.5 | I23: 2.6
A24: Aktywa finansowe | B24: Financial assets | C24: 23.8 | D24: 23.3 | E24: 5.7 | F24: 11.7 | G24: 10.8 | H24: 9.2 | I24: 4.3
A25: Rozliczenia międzyokresowe | B25: Prepayments and accrued income | C25: 16 | D25: 13.2 | E25: 14.7 | F25: 8.1 | G25: 13.7 | H25: 9.6 | I25: 11
A26: Środki pieniężne i depozyty krótkoterminowe | B26: Cash and short-term deposits | C26: 184.5 | D26: 147.8 | E26: 298.4 | F26: 308 | G26: 240.9 | H26: 17.3 | I26: 6.2
A27: Aktywa przeznaczone do sprzedaży | B27: Assets held for sale | C27: 6 | D27: 3.9 | E27: 3.9 | F27: 3.9 | G27: 4.6 | H27: 6.5 | I27: 6.7
C28: =SUM(C18:C27) -> 578.3 | D28: =SUM(D18:D27) -> 571 | E28: =SUM(E18:E27) -> 754.5 | F28: =SUM(F18:F27) -> 785.3 | G28: =SUM(G18:G27) -> 685.9 | H28: =SUM(H18:H27) -> 465.6 | I28: 568.1
A31: SUMA AKTYWÓW | B31: TOTAL ASSETS | C31: =SUM(C16,C28) -> 5256.6 | D31: =SUM(D16,D28) -> 5255.1 | E31: =SUM(E16,E28) -> 5463.9 | F31: =SUM(F16,F28) -> 5498 | G31: =SUM(G16,G28) -> 5481.2 | H31: =SUM(H16,H28) -> 5553.6 | I31: 5668.5
A33: KAPITAŁ WŁASNY OGÓŁEM | B33: TOTAL EQUITY | C33: 4909 | D33: 4869 | E33: 5078.9 | F33: 5035.7 | G33: 5078.5 | H33: 5033.1 | I33: 5256.9
A35: Zobowiązania długoterminowe | B35: Non-current liabilities
A36: Długoterminowe oprocentowane kredyty bankowe, pożyczki, dłużne papiery wartościowe | B36: Long-term interest-bearing bank loans, borrowings and debt securities | C36: 42.5 | D36: 46.4 | E36: 59.9 | F36: 63.6 | G36: 67.3 | H36: 61.3 | I36: 65
A37: Dł. zob. z tyt. leasingu finansowego | B37: Long-term finance lease liabilities | C37: 27.7 | D37: 34.2 | E37: 38.8 | F37: 44 | G37: 48.8 | H37: 53.2 | I37: 58.3
A38: Długoterminowe zobowiązania finansowe | B38: Long-term financial liabilities | C38: 0 | D38: 1.2 | E38: 0 | F38: 0 | G38: 2.1 | H38: - | I38: 9.1
A39: Rezerwa z tytułu odr. podatku doch. | B39: Deferred income tax liabilities | C39: 28.2 | D39: 28 | E39: 25 | F39: 18.7 | G39: 5.2 | H39: 11.5 | I39: 11.4
A40: Długoterminowe zobowiązania z tytułu umów z klientami | B40: Long-term contract liabilities | C40: 6 | D40: 4.8 | E40: 0 | F40: 0 | G40: 0 | H40: 0 | I40: 0
A41: Długoterminowe pozostałe zobowiązania | B41: Other long-term liabilities | C41: 0.5 | D41: 0.1 | E41: 0.3 | F41: 0.3 | G41: 0.3 | H41: 0.1 | I41: 0.1
A42: Długoterminowe rezerwy | B42: Long-term provisions | C42: 12.5 | D42: 14.7 | E42: 17 | F42: 22.3 | G42: 24.5 | H42: 28.2 | I42: 33.9
A43: Długoterminowe rozliczenia międzyokresowe przychodów | B43: Long-term deferred income | C43: 31.9 | D43: 31.5 | E43: 37.1 | F43: 34.9 | G43: 35.7 | H43: 36.8 | I43: 38
C44: =SUM(C36:C43) -> 149.3 | D44: =SUM(D36:D43) -> 160.9 | E44: =SUM(E36:E43) -> 178.1 | F44: =SUM(F36:F43) -> 183.8 | G44: =SUM(G36:G43) -> 183.9 | H44: =SUM(H36:H43) -> 191.1 | I44: 215.8
A45: Zobowiązania krótkoterminowe | B45: Current liabilities
A46: Oprocentowane kredyty bankowe, pożyczki, dłużne papiery wartościowe | B46: Interest-bearing bank loans, borrowings and debt securities | C46: 15.3 | D46: 15.4 | E46: 25.2 | F46: 25.3 | G46: 25.2 | H46: 123.9 | I46: 16.8
A47: Zob. z tyt. leasingu finansowego | B47: Finance lease liabilities | C47: 23 | D47: 23.1 | E47: 22 | F47: 21.5 | G47: 21.7 | H47: 21.4 | I47: 21.4
A48: Inne zobowiązania finansowe | B48: Other financial liabilities | C48: 1.1 | D48: 1.8 | E48: 0.1 | F48: 16.8 | G48: 10.8 | H48: 10.2 | I48: 2
A49: Zobowiązania z tytułu dostaw i usług | B49: Trade payables | C49: 66 | D49: 85.9 | E49: 70.4 | F49: 122.4 | G49: 75.1 | H49: 90 | I49: 63.5
A50: Krótkoterminowe zobowiązania z tytułu umów z klientami | B50: Current contract liabilities | C50: 20 | D50: 24.7 | E50: 0 | F50: 0 | G50: 0 | H50: 0 | I50: 0
A51: Zobowiązania budżetowe | B51: Liabilities to the state and local budgets | C51: 13 | D51: 14.6 | E51: 17.5 | F51: 11.3 | G51: 10.7 | H51: 13.1 | I51: 15.3
A52: Zobowiązania z tytułu podatku dochodowego od osób prawych | B52: Corporate income tax payable | C52: 8.4 | D52: 4.1 | E52: 0 | F52: 0 | G52: 10.3 | H52: 0 | I52: 0
A53: Pozostałe zobowiązania | B53: Other liabilities | C53: 9.7 | D53: 11.2 | E53: 9.9 | F53: 18.3 | G53: 5.2 | H53: 4.7 | I53: 6.1
A54: Rezerwy | B54: Provisions | C54: 10.4 | D54: 10.5 | E54: 10.7 | F54: 16.2 | G54: 24.4 | H54: 24.6 | I54: 25.8
A55: Rozliczenia międzyokresowe kosztów | B55: Deferred income | C55: 30.1 | D55: 32.5 | E55: 28 | F55: 31 | G55: 23 | H55: 26.7 | I55: 28.8
A56: Rozliczenia międzyokresowe przychodów | B56: Accruals | C56: 1.3 | D56: 1.4 | E56: 23.1 | F56: 15.7 | G56: 12.4 | H56: 14.8 | I56: 16.1
C57: =SUM(C46:C56) -> 198.3 | D57: 225.2 | E57: 206.9 | F57: 278.5 | G57: 218.8 | H57: 329.4 | I57: 195.8
A59: SUMA ZOBOWIĄZAŃ | B59: TOTAL LIABILITIES | C59: =SUM(C44,C57) -> 347.6 | D59: =SUM(D44,D57) -> 386.1 | E59: =SUM(E44,E57) -> 385 | F59: =SUM(F44,F57) -> 462.3 | G59: =SUM(G44,G57) -> 402.7 | H59: =SUM(H57,H44) -> 520.5 | I59: =SUM(I57,I44) -> 411.6
A61: SUMA PASYWÓW | B61: TOTAL EQUITY AND LIABILITIES | C61: =SUM(C33,C59) -> 5256.6 | D61: 5255.1 | E61: 5463.9 | F61: 5498 | G61: 5481.2 | H61: 5553.6 | I61: 5668.5
D62: =D61-D31 -> 0 | E62: 0 | F62: 0 | G62: 0 | H62: 0 | I62: 0

Sheet CF
A1: RACHUNEK PRZEPŁYWÓW PIENIĘŻNYCH ASSECO POLAND S.A. | B1: STATEMENT OF CASH FLOWS OF ASSECO POLAND S.A. | C1: Q3 2018 | D1: Q3 2017
C2: mln PLN | D2: mln PLN
A4: Przepływy środków pieniężnych z działalności operacyjnej | B4: Cash flows – operating activities
A5: Zysk brutto | B5: Pre-tax profit | C5: 159.7 | D5: 255.4
A6: Korekty o pozycje: | B6: Total adjustments: | C6: 19.9 | D6: -216.8
A7: Amortyzacja | B7: Depreciation and amortization | C7: 42 | D7: 40.5
A8: Zmiany stanu kapitału pracującego | B8: Changes in working capital | C8: -1.4 | D8: -72.6
A9: Przychody/koszty z tytułu odsetek | B9: Interest income/expenses | C9: 0 | D9: 2.8
A10: Zyski/straty z tytułu różnic kursowych | B10: Gain / loss on foreign exchange differences | C10: -0.2 | D10: -0.9
A11: Przychody z tytułu dywidend | B11: Dividend income | C11: -15.6 | D11: -140.6
A12: Strata ze sprzedaży akcji/udziałów w jednostkach powiązanych | B12: Loss on sales of share in subsidiaries | C12: 0 | D12: 0
A13: Pozostałe (przychody)/koszty finansowe | B13: Other financial (income)/ costs | C13: -4.1 | D13: -44.7
A14: Zyski/straty z działalności inwestycyjnej | B14: Gain / loss on investing activities | C14: -1.1 | D14: -2.4
A15: Pozostałe korekty zysku brutto | B15: Other pre-tax profit adjustments | C15: 0.3 | D15: 1.1
A16: Środki pieniężne netto wygenerowane z dział. operacyjnej | B16: Cash generated from operating activities | C16: 179.6 | D16: 38.6
A17: (Zapłacony podatek dochodowy) / Otrzymane zwroty podatku dochodowego | B17: (Corporate income tax paid) / Corporate income tax receipts | C17: 11.4 | D17: -29
A18: Środki pieniężne netto z działalności operacyjnej | B18: Net cash provided by (used in) operating activities | C18: 191 | D18: 9.6
A20: Przepływy środków pieniężnych z działalności inwestycyjnej | B20: Cash flows – investing activities
A21: Wpływy ze sprzedaży AT i WN [1] | B21: Disposal of tangible FA and IA [1] | C21: 1.4 | D21: 8.7
A22: Nabycie AT i WN [1] | B22: Acquisition of tangible FA and IA [1] | C22: -21.5 | D22: -12.7
A23: Wydatki z tytułu prowadzonych projektów rozwojowych | B23: Expenditures for development projects in progress | C23: -8.5 | D23: -6.8
A24: Wpływy ze sprzedaży/liwidacji inwestycji w jednostkach powiązanych | B24: Disposal of shares in related companies | C24: 9.8 | D24: 339.9
A25: Nabycie akcji/udziałów w jednostkach powiązanych | B25: Acquisition of shares in related companies | C25: -18 | D25: -9.8
A26: Środki pieniężne i ich ekwiwalenty w nabytych jednostkach zależnych | B26: Cash and cash equivalents in subsidiaries acquired | C26: 0 | D26: 0
A27: Wpływy ze sprzedaży aktywów finansowych P&L [2] | B27: Disposal of financial assets P&L [2] | C27: 1.1 | D27: -2
A28: Pożyczki spłacone | B28: Loans collected | C28: 11.4 | D28: 5.9
A29: Pożyczki udzielone | B29: Loans granted | C29: -4 | D29: -3
A30: Otrzymane odsetki | B30: Interest received | C30: 4.2 | D30: 3
A31: Dywidendy otrzymane | B31: Dividends received | C31: 10.9 | D31: 150.9
A32: Środki pieniężne netto wykorzystane w działalności inwestycyjnej | B32: Net cash provided by (used in) investing activities | C32: -13.2 | D32: 474.1
A34: Przepływy środków pieniężnych z działalności finansowej | B34: Cash flows – financing activities
A35: Wypłacona dywidenda | B35: Dividend paid out | C35: -249.8 | D35: -249.8
A36: Wpływy z tytułu zaciągnięcia kredytów | B36: Proceeds from bank loans | C36: 0 | D36: 19.5
A37: Wydatki z tytułu spłaty kredytów | B37: Repayment of bank loans and borrowings | C37: -30.8 | D37: -11.3
A38: Dotacje otrzymane do zakupu środków trwałych lub/i projektów rozwojowych | C38: 0 | D38: -11.3
A39: Spłata zobowiązań z tytułu leasingu finansowego | B39: Finance lease liabilities paid | C39: -16.2 | D39: -16
A40: Zapłacone odsetki | B40: Interest paid | C40: -4.5 | D40: -5.1
A41: Środki pieniężne netto z działalności finansowej | B41: Net cash provided by (used in) financing activities | C41: -301.3 | D41: -262.7
A42: Zmiana netto stanu środków pieniężnych i ich ekwiwalentów | B42: Net change in cash and cash equivalents | C42: -123.5 | D42: 221
A43: Różnice kursowe netto | B43: Net foreign exchange differences | C43: 0 | D43: 0
A44: Środki pieniężne i ich ekwiwalenty na dzień 1 stycznia | B44: Cash and cash equivalents at 1 January | C44: 308 | D44: 19.9
A45: Środki pieniężne i ich ekwiwalenty na dzień 30 września | B45: Cash and cash equivalents at 30 September | C45: 184.5 | D45: 240.9
C46: =C44+C43+C42-C45 -> 0 | D46: 0
A48: Objaśnienia: | B48: Legend:
A49: [1] AT i WN - aktywów trwałych i wartości niematerialnych | B49: [1] FA and IA - fixed assets and intangible assets
A50: [2] Wpływy / wydatki ze sprzedaży aktywów finansowych wycenianych do wartości godziwej przez rachunek zysków i strat | B50: [2] Disposal / Purchase of financial assets carried at fair value through profit or loss
